[Event "Titled Tuesday Blitz November 07 Late 2023"]
[White "Matlakov, Maxim"]
[Black "Leiva, Gianmarco"]
[WhiteFideId "4168003"]
[BlackFideId "3804399"]
[WhiteElo "2962"]
[BlackElo "2688"]
[Result "1-0"]
[Round "3"]
[TimeControl "180+1"]
[Date "2023.11.07"]
[WhiteClock "0:00:36"]
[BlackClock "0:00:02"]
[Board "18"]

1. d4 {[%clk 0:03:00]}  Nf6 {[%clk 0:02:59]} 2. c4 {[%clk 0:03:01]}  e6 {[%clk 0:02:59]} 3. Nc3 {[%clk 0:03:01]}  Bb4 {[%clk 0:02:59]} 4. e3 {[%clk 0:03:01]}  O-O {[%clk 0:02:59]} 5. Bd3 {[%clk 0:02:59]}  d5 {[%clk 0:02:59]} 6. cxd5 {[%clk 0:02:59]}  exd5 {[%clk 0:02:57]} 7. a3 {[%clk 0:02:59]}  Bd6 {[%clk 0:02:57]} 8. Qc2 {[%clk 0:02:59]}  a6 {[%clk 0:02:56]} 9. Nge2 {[%clk 0:02:56]}  b6 {[%clk 0:02:55]} 10. b4 {[%clk 0:02:49]}  Bb7 {[%clk 0:02:55]} 11. Rb1 {[%clk 0:02:48]}  Nbd7 {[%clk 0:02:55]} 12. O-O {[%clk 0:02:46]}  Qe7 {[%clk 0:02:09]} 13. Ng3 {[%clk 0:02:44]}  g6 {[%clk 0:02:08]} 14. f3 {[%clk 0:02:44]}  a5 {[%clk 0:02:06]} 15. Nb5 {[%clk 0:02:31]}  axb4 {[%clk 0:01:58]} 16. Nxd6 {[%clk 0:02:25]}  Qxd6 {[%clk 0:01:58]} 17. axb4 {[%clk 0:02:24]}  h5 {[%clk 0:01:44]} 18. Ne2 {[%clk 0:02:20]}  Rfe8 {[%clk 0:01:34]} 19. Bd2 {[%clk 0:02:19]}  Ra3 {[%clk 0:01:25]} 20. b5 {[%clk 0:02:14]}  c5 {[%clk 0:01:18]} 21. bxc6 {[%clk 0:02:09]}  Qxc6 {[%clk 0:01:18]} 22. Bxg6 {[%clk 0:01:32]}  Qxc2 {[%clk 0:01:04]} 23. Bxc2 {[%clk 0:01:31]}  Ba6 {[%clk 0:01:04]} 24. Rf2 {[%clk 0:01:16]}  Ra2 {[%clk 0:01:02]} 25. Rc1 {[%clk 0:01:16]}  Rc8 {[%clk 0:01:02]} 26. Nc3 {[%clk 0:01:15]}  Ra3 {[%clk 0:00:56]} 27. Bf5 {[%clk 0:01:11]}  Kg7 {[%clk 0:00:36]} 28. e4 {[%clk 0:01:06]}  dxe4 {[%clk 0:00:29]} 29. fxe4 {[%clk 0:01:07]}  Rc4 {[%clk 0:00:28]} 30. e5 {[%clk 0:01:02]}  Ng4 {[%clk 0:00:28]} 31. Rf4 {[%clk 0:00:58]}  Nf8 {[%clk 0:00:21]} 32. h3 {[%clk 0:00:49]}  Nh6 {[%clk 0:00:18]} 33. Bd3 {[%clk 0:00:42]}  Rcxc3 {[%clk 0:00:14]} 34. Rxc3 {[%clk 0:00:42]}  Rxc3 {[%clk 0:00:14]} 35. Bxc3 {[%clk 0:00:43]}  Bxd3 {[%clk 0:00:15]} 36. d5 {[%clk 0:00:43]}  Bf5 {[%clk 0:00:13]} 37. e6+ {[%clk 0:00:40]}  f6 {[%clk 0:00:02]} 38. e7 {[%clk 0:00:36]}  Kf7 {[%clk 0:00:02]} 1-0


[Site "https://www.chess.com"]

[Event "Titled Tuesday Blitz November 07 Late 2023"]
[White "Zeltsan, Joseph"]
[Black "Sjugirov, Sanan"]
[WhiteFideId "30932980"]
[BlackFideId "4189302"]
[WhiteElo "2687"]
[BlackElo "2959"]
[Result "0-1"]
[Round "3"]
[TimeControl "180+1"]
[Date "2023.11.07"]
[WhiteClock "0:00:10"]
[BlackClock "0:00:03"]
[Board "19"]

1. e4 {[%clk 0:03:00]}  c5 {[%clk 0:02:59]} 2. Nf3 {[%clk 0:03:00]}  d6 {[%clk 0:03:00]} 3. d4 {[%clk 0:03:01]}  cxd4 {[%clk 0:03:01]} 4. Nxd4 {[%clk 0:03:02]}  Nf6 {[%clk 0:03:02]} 5. Nc3 {[%clk 0:03:02]}  a6 {[%clk 0:03:02]} 6. Bg5 {[%clk 0:03:03]}  e6 {[%clk 0:03:02]} 7. f4 {[%clk 0:03:04]}  Qb6 {[%clk 0:03:02]} 8. Qd2 {[%clk 0:03:03]}  Nc6 {[%clk 0:03:02]} 9. O-O-O {[%clk 0:03:01]}  Qxd4 {[%clk 0:02:59]} 10. Qxd4 {[%clk 0:03:02]}  Nxd4 {[%clk 0:02:59]} 11. Rxd4 {[%clk 0:03:03]}  h6 {[%clk 0:02:59]} 12. Bh4 {[%clk 0:02:56]}  Nh5 {[%clk 0:02:59]} 13. g3 {[%clk 0:02:48]}  g5 {[%clk 0:02:25]} 14. Be2 {[%clk 0:02:21]}  Nxf4 {[%clk 0:02:18]} 15. gxf4 {[%clk 0:02:22]}  gxh4 {[%clk 0:02:19]} 16. Rg1 {[%clk 0:02:21]}  Bd7 {[%clk 0:02:17]} 17. Bh5 {[%clk 0:02:21]}  Bc6 {[%clk 0:02:12]} 18. f5 {[%clk 0:02:09]}  Ke7 {[%clk 0:02:03]} 19. Rd3 {[%clk 0:02:08]}  Rh7 {[%clk 0:01:58]} 20. Rf3 {[%clk 0:02:05]}  b5 {[%clk 0:01:33]} 21. a3 {[%clk 0:01:30]}  a5 {[%clk 0:01:32]} 22. fxe6 {[%clk 0:01:24]}  fxe6 {[%clk 0:01:30]} 23. Rg8 {[%clk 0:01:24]}  b4 {[%clk 0:01:22]} 24. Bg6 {[%clk 0:01:23]}  Rg7 {[%clk 0:00:21]} 25. Rxg7+ {[%clk 0:01:23]}  Bxg7 {[%clk 0:00:22]} 26. Rf7+ {[%clk 0:01:23]}  Kd8 {[%clk 0:00:22]} 27. Rxg7 {[%clk 0:01:20]}  bxc3 {[%clk 0:00:23]} 28. bxc3 {[%clk 0:01:21]}  Rc8 {[%clk 0:00:18]} 29. Rh7 {[%clk 0:01:20]}  Bd7 {[%clk 0:00:15]} 30. Kb2 {[%clk 0:00:57]}  Rb8+ {[%clk 0:00:14]} 31. Kc1 {[%clk 0:00:55]}  Rc8 {[%clk 0:00:15]} 32. Kb2 {[%clk 0:00:18]}  Rb8+ {[%clk 0:00:15]} 33. Kc1 {[%clk 0:00:19]}  Rb5 {[%clk 0:00:16]} 34. Rxh6 {[%clk 0:00:18]}  Rc5 {[%clk 0:00:16]} 35. Rxh4 {[%clk 0:00:17]}  Rxc3 {[%clk 0:00:16]} 36. Kb2 {[%clk 0:00:18]}  Re3 {[%clk 0:00:15]} 37. Rf4 {[%clk 0:00:18]}  Rh3 {[%clk 0:00:15]} 38. Rf2 {[%clk 0:00:19]}  Kc7 {[%clk 0:00:13]} 39. Bf7 {[%clk 0:00:18]}  Rh6 {[%clk 0:00:12]} 40. Rg2 {[%clk 0:00:16]}  Rh7 {[%clk 0:00:09]} 41. Bg6 {[%clk 0:00:15]}  Rh4 {[%clk 0:00:07]} 42. Bf7 {[%clk 0:00:16]}  Rxe4 {[%clk 0:00:07]} 43. Kc3 {[%clk 0:00:16]}  Re3+ {[%clk 0:00:07]} 44. Kb2 {[%clk 0:00:15]}  Kd8 {[%clk 0:00:07]} 45. h4 {[%clk 0:00:15]}  Ke7 {[%clk 0:00:07]} 46. Bg6 {[%clk 0:00:16]}  Rh3 {[%clk 0:00:05]} 47. h5 {[%clk 0:00:16]}  e5 {[%clk 0:00:05]} 48. Rf2 {[%clk 0:00:15]}  Be6 {[%clk 0:00:06]} 49. c3 {[%clk 0:00:15]}  d5 {[%clk 0:00:06]} 50. Kc2 {[%clk 0:00:15]}  e4 {[%clk 0:00:06]} 51. Rf1 {[%clk 0:00:15]}  Kd6 {[%clk 0:00:06]} 52. Kb3 {[%clk 0:00:15]}  d4+ {[%clk 0:00:05]} 53. Ka4 {[%clk 0:00:16]}  Bd7+ {[%clk 0:00:04]} 54. Kxa5 {[%clk 0:00:16]}  Rxc3 {[%clk 0:00:03]} 55. Kb4 {[%clk 0:00:17]}  Re3 {[%clk 0:00:02]} 56. h6 {[%clk 0:00:17]}  Rh3 {[%clk 0:00:02]} 57. h7 {[%clk 0:00:17]}  e3 {[%clk 0:00:02]} 58. Rf8 {[%clk 0:00:10]}  e2 {[%clk 0:00:03]} 0-1


[Site "https://www.chess.com"]

[Event "Titled Tuesday Blitz November 07 Late 2023"]
[White "Skvortsov, Andrei"]
[Black "Bortnyk, Mykola"]
[WhiteFideId "24108600"]
[BlackFideId "14120836"]
[WhiteElo "2672"]
[BlackElo "2926"]
[Result "0-1"]
[Round "3"]
[TimeControl "180+1"]
[Date "2023.11.07"]
[WhiteClock "0:00:02"]
[BlackClock "0:00:07"]
[Board "22"]

1. g3 {[%clk 0:03:00]}  e5 {[%clk 0:02:56]} 2. e4 {[%clk 0:02:57]}  Nf6 {[%clk 0:02:55]} 3. Bg2 {[%clk 0:02:57]}  Nc6 {[%clk 0:02:55]} 4. Nc3 {[%clk 0:02:56]}  Bc5 {[%clk 0:02:53]} 5. Nge2 {[%clk 0:02:56]}  h5 {[%clk 0:02:51]} 6. h3 {[%clk 0:02:55]}  d6 {[%clk 0:02:49]} 7. d3 {[%clk 0:02:55]}  Be6 {[%clk 0:02:41]} 8. Na4 {[%clk 0:02:53]}  Bb6 {[%clk 0:02:26]} 9. Bg5 {[%clk 0:02:41]}  Qd7 {[%clk 0:02:11]} 10. Nxb6 {[%clk 0:02:39]}  axb6 {[%clk 0:02:11]} 11. a3 {[%clk 0:02:34]}  Nh7 {[%clk 0:02:06]} 12. Be3 {[%clk 0:02:33]}  Ne7 {[%clk 0:02:03]} 13. Nc3 {[%clk 0:02:31]}  h4 {[%clk 0:02:01]} 14. g4 {[%clk 0:02:25]}  c5 {[%clk 0:01:59]} 15. f4 {[%clk 0:02:24]}  f6 {[%clk 0:01:59]} 16. f5 {[%clk 0:02:24]}  Bf7 {[%clk 0:01:58]} 17. Qd2 {[%clk 0:02:17]}  d5 {[%clk 0:01:56]} 18. exd5 {[%clk 0:02:18]}  Nxd5 {[%clk 0:01:56]} 19. Nxd5 {[%clk 0:02:18]}  Bxd5 {[%clk 0:01:57]} 20. O-O {[%clk 0:02:16]}  O-O {[%clk 0:01:49]} 21. Qf2 {[%clk 0:02:04]}  Bxg2 {[%clk 0:01:46]} 22. Qxg2 {[%clk 0:02:00]}  Ng5 {[%clk 0:01:42]} 23. Rae1 {[%clk 0:01:53]}  Rae8 {[%clk 0:01:30]} 24. Bxg5 {[%clk 0:01:33]}  fxg5 {[%clk 0:01:31]} 25. Re4 {[%clk 0:01:32]}  b5 {[%clk 0:01:26]} 26. Rfe1 {[%clk 0:01:31]}  Re7 {[%clk 0:01:24]} 27. Qd2 {[%clk 0:01:31]}  c4 {[%clk 0:01:21]} 28. d4 {[%clk 0:01:22]}  Ree8 {[%clk 0:00:51]} 29. Rxe5 {[%clk 0:01:17]}  Rxe5 {[%clk 0:00:49]} 30. Rxe5 {[%clk 0:01:18]}  Qd6 {[%clk 0:00:44]} 31. c3 {[%clk 0:01:12]}  Qd8 {[%clk 0:00:36]} 32. Qe3 {[%clk 0:01:07]}  Kh7 {[%clk 0:00:36]} 33. Qe4 {[%clk 0:01:00]}  Rf6 {[%clk 0:00:28]} 34. Rxb5 {[%clk 0:00:57]}  b6 {[%clk 0:00:26]} 35. Re5 {[%clk 0:00:57]}  Qd6 {[%clk 0:00:26]} 36. Qe3 {[%clk 0:00:53]}  Kh6 {[%clk 0:00:21]} 37. Re6 {[%clk 0:00:42]}  Qc7 {[%clk 0:00:19]} 38. Kf1 {[%clk 0:00:38]}  Qh2 {[%clk 0:00:16]} 39. Qf3 {[%clk 0:00:20]}  Qxb2 {[%clk 0:00:16]} 40. a4 {[%clk 0:00:17]}  Qa1+ {[%clk 0:00:15]} 41. Re1 {[%clk 0:00:17]}  Qxa4 {[%clk 0:00:14]} 42. Kg2 {[%clk 0:00:17]}  Qc2+ {[%clk 0:00:14]} 43. Re2 {[%clk 0:00:17]}  Qd1 {[%clk 0:00:13]} 44. Rb2 {[%clk 0:00:15]}  Qc1 {[%clk 0:00:12]} 45. Ra2 {[%clk 0:00:15]}  Kh7 {[%clk 0:00:09]} 46. Re2 {[%clk 0:00:15]}  b5 {[%clk 0:00:09]} 47. Rf2 {[%clk 0:00:13]}  b4 {[%clk 0:00:10]} 48. cxb4 {[%clk 0:00:12]}  c3 {[%clk 0:00:10]} 49. Rf1 {[%clk 0:00:05]}  Qd2+ {[%clk 0:00:10]} 50. Rf2 {[%clk 0:00:05]}  Qxd4 {[%clk 0:00:10]} 51. Rc2 {[%clk 0:00:06]}  Rd6 {[%clk 0:00:08]} 52. Qxc3 {[%clk 0:00:05]}  Qe4+ {[%clk 0:00:08]} 53. Kf2 {[%clk 0:00:05]}  Rd3 {[%clk 0:00:08]} 54. Qc6 {[%clk 0:00:04]}  Qe3+ {[%clk 0:00:06]} 55. Kg2 {[%clk 0:00:04]}  Qxh3+ {[%clk 0:00:06]} 56. Kf2 {[%clk 0:00:02]}  Qg3+ {[%clk 0:00:06]} 57. Kf1 {[%clk 0:00:02]}  Rd1+ {[%clk 0:00:05]} 58. Ke2 {[%clk 0:00:03]}  Re1+ {[%clk 0:00:06]} 59. Kd2 {[%clk 0:00:02]}  Qe3# {[%clk 0:00:07]} 0-1


[Site "https://www.chess.com"]

[Event "Titled Tuesday Blitz November 07 Late 2023"]
[White "Melkumyan, Hrant"]
[Black "Gubajdullin, Alexei"]
[WhiteFideId "13302485"]
[BlackFideId "4141202"]
[WhiteElo "2918"]
[BlackElo "2665"]
[Result "1-0"]
[Round "3"]
[TimeControl "180+1"]
[Date "2023.11.07"]
[WhiteClock "0:00:08"]
[BlackClock "0:00:04"]
[Board "24"]

1. d4 {[%clk 0:02:53]}  Nf6 {[%clk 0:02:59]} 2. c4 {[%clk 0:02:53]}  g6 {[%clk 0:03:00]} 3. Nc3 {[%clk 0:02:52]}  Bg7 {[%clk 0:03:00]} 4. e4 {[%clk 0:02:50]}  d6 {[%clk 0:03:00]} 5. f3 {[%clk 0:02:45]}  O-O {[%clk 0:03:00]} 6. Nge2 {[%clk 0:02:45]}  Nc6 {[%clk 0:02:59]} 7. Be3 {[%clk 0:02:43]}  a6 {[%clk 0:02:56]} 8. Ng3 {[%clk 0:02:35]}  e5 {[%clk 0:02:53]} 9. d5 {[%clk 0:02:36]}  Nd4 {[%clk 0:02:53]} 10. Nge2 {[%clk 0:02:36]}  c5 {[%clk 0:02:26]} 11. dxc6 {[%clk 0:02:37]}  bxc6 {[%clk 0:02:27]} 12. Nxd4 {[%clk 0:02:36]}  exd4 {[%clk 0:02:26]} 13. Bxd4 {[%clk 0:02:37]}  Rb8 {[%clk 0:02:26]} 14. Qd2 {[%clk 0:02:31]}  Qa5 {[%clk 0:02:14]} 15. Rd1 {[%clk 0:02:22]}  c5 {[%clk 0:02:10]} 16. Bxf6 {[%clk 0:01:36]}  Bxf6 {[%clk 0:02:08]} 17. Nd5 {[%clk 0:01:36]}  Qxd2+ {[%clk 0:02:07]} 18. Rxd2 {[%clk 0:01:37]}  Bxb2 {[%clk 0:02:06]} 19. Bd3 {[%clk 0:01:35]}  Be6 {[%clk 0:01:42]} 20. Ke2 {[%clk 0:01:33]}  Bxd5 {[%clk 0:01:36]} 21. cxd5 {[%clk 0:01:32]}  a5 {[%clk 0:01:34]} 22. a4 {[%clk 0:01:30]}  Rb4 {[%clk 0:01:31]} 23. Bb5 {[%clk 0:01:18]}  c4 {[%clk 0:01:24]} 24. Rc2 {[%clk 0:01:13]}  c3 {[%clk 0:01:24]} 25. Kd3 {[%clk 0:00:59]}  Rb8 {[%clk 0:01:17]} 26. Re1 {[%clk 0:00:51]}  Kg7 {[%clk 0:00:42]} 27. g4 {[%clk 0:00:49]}  g5 {[%clk 0:00:40]} 28. e5 {[%clk 0:00:45]}  dxe5 {[%clk 0:00:37]} 29. Rxe5 {[%clk 0:00:46]}  Rf4 {[%clk 0:00:26]} 30. Rxg5+ {[%clk 0:00:44]}  Kf6 {[%clk 0:00:25]} 31. Rh5 {[%clk 0:00:40]}  Rxf3+ {[%clk 0:00:25]} 32. Kc4 {[%clk 0:00:40]}  Rf4+ {[%clk 0:00:22]} 33. Kb3 {[%clk 0:00:40]}  Rb4+ {[%clk 0:00:20]} 34. Ka2 {[%clk 0:00:37]}  Rd4 {[%clk 0:00:19]} 35. Rf2+ {[%clk 0:00:31]}  Kg7 {[%clk 0:00:18]} 36. Rhf5 {[%clk 0:00:30]}  Rb7 {[%clk 0:00:17]} 37. Bc6 {[%clk 0:00:26]}  Rc7 {[%clk 0:00:13]} 38. Kb3 {[%clk 0:00:26]}  Rd2 {[%clk 0:00:13]} 39. Rxd2 {[%clk 0:00:15]}  cxd2 {[%clk 0:00:13]} 40. Kc2 {[%clk 0:00:16]}  Bc1 {[%clk 0:00:13]} 41. Rf1 {[%clk 0:00:14]}  f6 {[%clk 0:00:12]} 42. h4 {[%clk 0:00:15]}  Rc8 {[%clk 0:00:12]} 43. Kd1 {[%clk 0:00:14]}  Rd8 {[%clk 0:00:12]} 44. Kc2 {[%clk 0:00:13]}  Rd6 {[%clk 0:00:12]} 45. Kd3 {[%clk 0:00:12]}  h6 {[%clk 0:00:10]} 46. Ke4 {[%clk 0:00:12]}  Kf8 {[%clk 0:00:10]} 47. Kf5 {[%clk 0:00:09]}  Kg7 {[%clk 0:00:10]} 48. Ke4 {[%clk 0:00:06]}  Kg6 {[%clk 0:00:09]} 49. Bb5 {[%clk 0:00:06]}  Kg7 {[%clk 0:00:09]} 50. Bd3 {[%clk 0:00:06]}  Kf7 {[%clk 0:00:08]} 51. Kd4 {[%clk 0:00:06]}  Kg7 {[%clk 0:00:08]} 52. Bf5 {[%clk 0:00:06]}  Rd7 {[%clk 0:00:06]} 53. Bxd7 {[%clk 0:00:06]}  Kf7 {[%clk 0:00:06]} 54. Bf5 {[%clk 0:00:05]}  Ke7 {[%clk 0:00:06]} 55. Bc2 {[%clk 0:00:05]}  Kd6 {[%clk 0:00:07]} 56. Bd1 {[%clk 0:00:06]}  Kd7 {[%clk 0:00:06]} 57. Ke4 {[%clk 0:00:06]}  Ke7 {[%clk 0:00:06]} 58. Rf5 {[%clk 0:00:07]}  Kd7 {[%clk 0:00:05]} 59. Rxf6 {[%clk 0:00:07]}  Ke7 {[%clk 0:00:06]} 60. Rxh6 {[%clk 0:00:07]}  Kf7 {[%clk 0:00:04]} 61. Re6 {[%clk 0:00:08]} 1-0


[Site "https://www.chess.com"]

[Event "Titled Tuesday Blitz November 07 Late 2023"]
[White "Perske, Thore"]
[Black "Salinas Herrera, Pablo"]
[WhiteFideId "12902195"]
[BlackFideId "3407128"]
[WhiteElo "2642"]
[BlackElo "2905"]
[Result "1/2-1/2"]
[Round "3"]
[TimeControl "180+1"]
[Date "2023.11.07"]
[WhiteClock "0:00:09"]
[BlackClock "0:00:15"]
[Board "27"]

1. d4 {[%clk 0:03:00]}  d5 {[%clk 0:03:00]} 2. Nf3 {[%clk 0:02:59]}  Nf6 {[%clk 0:02:59]} 3. g3 {[%clk 0:02:59]}  Bf5 {[%clk 0:02:58]} 4. Bg2 {[%clk 0:02:59]}  e6 {[%clk 0:02:58]} 5. c4 {[%clk 0:02:57]}  c6 {[%clk 0:02:58]} 6. Nc3 {[%clk 0:02:56]}  h6 {[%clk 0:02:55]} 7. Qb3 {[%clk 0:02:55]}  Qb6 {[%clk 0:02:55]} 8. c5 {[%clk 0:02:55]}  Qxb3 {[%clk 0:02:55]} 9. axb3 {[%clk 0:02:56]}  Be7 {[%clk 0:02:54]} 10. b4 {[%clk 0:02:55]}  O-O {[%clk 0:02:47]} 11. Nd2 {[%clk 0:02:45]}  a6 {[%clk 0:02:44]} 12. Nb3 {[%clk 0:02:41]}  Nbd7 {[%clk 0:02:30]} 13. Bf4 {[%clk 0:02:31]}  g5 {[%clk 0:02:28]} 14. Bd6 {[%clk 0:01:52]}  Bxd6 {[%clk 0:02:28]} 15. cxd6 {[%clk 0:01:53]}  Rfd8 {[%clk 0:02:25]} 16. Nc5 {[%clk 0:01:48]}  Rab8 {[%clk 0:02:26]} 17. f3 {[%clk 0:01:43]}  Bg6 {[%clk 0:01:51]} 18. e4 {[%clk 0:01:27]}  dxe4 {[%clk 0:01:51]} 19. fxe4 {[%clk 0:01:27]}  e5 {[%clk 0:01:52]} 20. O-O-O {[%clk 0:01:23]}  exd4 {[%clk 0:01:48]} 21. Rxd4 {[%clk 0:01:24]}  Ne5 {[%clk 0:01:47]} 22. h4 {[%clk 0:01:04]}  Kg7 {[%clk 0:01:45]} 23. b3 {[%clk 0:00:58]}  b6 {[%clk 0:01:33]} 24. Nxa6 {[%clk 0:00:49]}  Ra8 {[%clk 0:01:33]} 25. Nc7 {[%clk 0:00:44]}  Ra7 {[%clk 0:01:16]} 26. Rhd1 {[%clk 0:00:43]}  Nfd7 {[%clk 0:01:13]} 27. Kb2 {[%clk 0:00:35]}  Bh5 {[%clk 0:01:04]} 28. Ra1 {[%clk 0:00:34]}  Rxa1 {[%clk 0:01:04]} 29. Kxa1 {[%clk 0:00:35]}  Bf3 {[%clk 0:01:03]} 30. Bxf3 {[%clk 0:00:31]}  Nxf3 {[%clk 0:01:04]} 31. Rd1 {[%clk 0:00:29]}  Nde5 {[%clk 0:00:58]} 32. b5 {[%clk 0:00:29]}  cxb5 {[%clk 0:00:55]} 33. N3xb5 {[%clk 0:00:28]}  gxh4 {[%clk 0:00:51]} 34. gxh4 {[%clk 0:00:28]}  Nxh4 {[%clk 0:00:51]} 35. Nd5 {[%clk 0:00:25]}  Nd7 {[%clk 0:00:48]} 36. Rg1+ {[%clk 0:00:23]}  Ng6 {[%clk 0:00:48]} 37. Ne3 {[%clk 0:00:22]}  h5 {[%clk 0:00:48]} 38. Kb2 {[%clk 0:00:16]}  h4 {[%clk 0:00:48]} 39. Kc3 {[%clk 0:00:13]}  Nc5 {[%clk 0:00:46]} 40. e5 {[%clk 0:00:09]}  Kh6 {[%clk 0:00:43]} 41. Nf5+ {[%clk 0:00:09]}  Kh7 {[%clk 0:00:41]} 42. Nxh4 {[%clk 0:00:09]}  Nxe5 {[%clk 0:00:34]} 43. Nf5 {[%clk 0:00:08]}  Nf3 {[%clk 0:00:28]} 44. Rh1+ {[%clk 0:00:07]}  Kg6 {[%clk 0:00:29]} 45. Ne7+ {[%clk 0:00:07]}  Kf6 {[%clk 0:00:27]} 46. Rf1 {[%clk 0:00:07]}  Ne4+ {[%clk 0:00:25]} 47. Kd3 {[%clk 0:00:07]}  Ng5 {[%clk 0:00:25]} 48. Nd5+ {[%clk 0:00:07]}  Ke6 {[%clk 0:00:22]} 49. Ndc7+ {[%clk 0:00:07]}  Kd7 {[%clk 0:00:22]} 50. Ke3 {[%clk 0:00:06]}  Ne5 {[%clk 0:00:22]} 51. Rf5 {[%clk 0:00:05]}  f6 {[%clk 0:00:20]} 52. Kd2 {[%clk 0:00:04]}  Ne4+ {[%clk 0:00:19]} 53. Ke3 {[%clk 0:00:04]}  Nxd6 {[%clk 0:00:20]} 54. Nxd6 {[%clk 0:00:03]}  Kxc7 {[%clk 0:00:19]} 55. Ne4 {[%clk 0:00:03]}  Rd3+ {[%clk 0:00:17]} 56. Ke2 {[%clk 0:00:03]}  Rxb3 {[%clk 0:00:17]} 57. Nxf6 {[%clk 0:00:04]}  Nc4 {[%clk 0:00:16]} 58. Nd5+ {[%clk 0:00:03]}  Kd6 {[%clk 0:00:16]} 59. Nf4 {[%clk 0:00:04]}  Re3+ {[%clk 0:00:15]} 60. Kf2 {[%clk 0:00:04]}  Re8 {[%clk 0:00:15]} 61. Nd3 {[%clk 0:00:04]}  Kc6 {[%clk 0:00:13]} 62. Rh5 {[%clk 0:00:04]}  Rf8+ {[%clk 0:00:13]} 63. Ke2 {[%clk 0:00:04]}  Re8+ {[%clk 0:00:13]} 64. Kd1 {[%clk 0:00:04]}  Re6 {[%clk 0:00:14]} 65. Kc2 {[%clk 0:00:04]}  Ne3+ {[%clk 0:00:13]} 66. Kc3 {[%clk 0:00:05]}  Nd5+ {[%clk 0:00:14]} 67. Kd4 {[%clk 0:00:05]}  Ne7 {[%clk 0:00:13]} 68. Ne5+ {[%clk 0:00:05]}  Kb7 {[%clk 0:00:13]} 69. Nc4 {[%clk 0:00:06]}  Ka6 {[%clk 0:00:13]} 70. Kc3 {[%clk 0:00:06]}  Rc6 {[%clk 0:00:13]} 71. Kb3 {[%clk 0:00:06]}  Nc8 {[%clk 0:00:12]} 72. Na3 {[%clk 0:00:07]}  Nd6 {[%clk 0:00:12]} 73. Nc2 {[%clk 0:00:07]}  Ne4 {[%clk 0:00:12]} 74. Nb4+ {[%clk 0:00:07]}  Kb7 {[%clk 0:00:13]} 75. Nxc6 {[%clk 0:00:07]}  Kxc6 {[%clk 0:00:14]} 76. Rh6+ {[%clk 0:00:07]}  Kc5 {[%clk 0:00:14]} 77. Rh5+ {[%clk 0:00:08]}  Kc6 {[%clk 0:00:15]} 78. Rh6+ {[%clk 0:00:08]}  Kc5 {[%clk 0:00:15]} 79. Rh5+ {[%clk 0:00:09]}  Kc6 {[%clk 0:00:15]} 1/2-1/2


[Site "https://www.chess.com"]

[Event "Titled Tuesday Blitz November 07 Late 2023"]
[White "Mikaelyan, Arman"]
[Black "Roebers, Eline"]
[WhiteFideId "13304852"]
[BlackFideId "1058401"]
[WhiteElo "2866"]
[BlackElo "2623"]
[Result "0-1"]
[Round "3"]
[TimeControl "180+1"]
[Date "2023.11.07"]
[WhiteClock "0:00:43"]
[BlackClock "0:01:04"]
[Board "30"]

1. d4 {[%clk 0:03:00]}  f5 {[%clk 0:02:59]} 2. g3 {[%clk 0:03:00]}  Nf6 {[%clk 0:03:00]} 3. Bg2 {[%clk 0:03:00]}  g6 {[%clk 0:03:00]} 4. h4 {[%clk 0:03:01]}  Bg7 {[%clk 0:02:56]} 5. Nh3 {[%clk 0:03:00]}  d6 {[%clk 0:02:52]} 6. d5 {[%clk 0:03:00]}  c6 {[%clk 0:02:52]} 7. Nc3 {[%clk 0:03:00]}  O-O {[%clk 0:02:33]} 8. Nf4 {[%clk 0:02:59]}  cxd5 {[%clk 0:02:28]} 9. Ncxd5 {[%clk 0:03:00]}  e6 {[%clk 0:02:26]} 10. Nxf6+ {[%clk 0:02:58]}  Bxf6 {[%clk 0:02:27]} 11. O-O {[%clk 0:02:40]}  Nc6 {[%clk 0:02:22]} 12. c4 {[%clk 0:02:40]}  Rb8 {[%clk 0:02:16]} 13. Rb1 {[%clk 0:02:38]}  Qe7 {[%clk 0:02:12]} 14. b4 {[%clk 0:02:38]}  Ne5 {[%clk 0:02:05]} 15. Qb3 {[%clk 0:02:36]}  Bd7 {[%clk 0:01:59]} 16. Be3 {[%clk 0:02:35]}  b6 {[%clk 0:01:53]} 17. Rbc1 {[%clk 0:02:23]}  Ng4 {[%clk 0:01:45]} 18. Qa3 {[%clk 0:02:18]}  Be8 {[%clk 0:01:40]} 19. Rfd1 {[%clk 0:02:15]}  Nxe3 {[%clk 0:01:32]} 20. Qxe3 {[%clk 0:02:16]}  Bf7 {[%clk 0:01:31]} 21. Rd2 {[%clk 0:02:04]}  Rfd8 {[%clk 0:01:25]} 22. Rcd1 {[%clk 0:02:03]}  Rbc8 {[%clk 0:01:24]} 23. Qb3 {[%clk 0:02:00]}  Qc7 {[%clk 0:01:21]} 24. Rc2 {[%clk 0:01:47]}  d5 {[%clk 0:01:19]} 25. c5 {[%clk 0:01:43]}  bxc5 {[%clk 0:01:17]} 26. Rxc5 {[%clk 0:01:43]}  Qb6 {[%clk 0:01:15]} 27. Rdc1 {[%clk 0:01:40]}  Rxc5 {[%clk 0:01:14]} 28. bxc5 {[%clk 0:01:32]}  Qc7 {[%clk 0:01:11]} 29. c6 {[%clk 0:01:29]}  Bd4 {[%clk 0:01:04]} 30. Qe3 {[%clk 0:00:43]}  Bxe3 {[%clk 0:01:04]} 0-1


[Site "https://www.chess.com"]